Cogmind - Beta 17.1 @@@ ROGUE MODE // 2026.08.31 @ 12:53:10 Player: Godsword Result: Self-destructed Performance ------------- Evolutions (5) 2500 Regions Visited (10) 2000 Robots Destroyed (30) 150 Value Destroyed (653) 653 Prototype IDs (4) 80 Alien Tech Used (0) 0 Bonus (200) 200 TOTAL SCORE: 5583 Bonus ------- Entered Garrisons 200 Cogmind --------- Core Integrity 985/1000 Matter 300/300 Energy 220/220 System Corruption 2% Temperature Cool (0) Movement Hovering (112) Ox1 Location -5/Upper Caves Parts ------- > --- POWER (2) -------- Light Fission Core Light Fission Core > --- PROPULSION (5) --- Airjet Airjet Airjet > --- UTILITY (8) ------ Power Amplifier Large Storage Unit Targeting Computer Target Analyzer Core Analyzer Core Analyzer Phase Shifter Improved Light Armor Plating > --- WEAPON (2) ------- Impact Mace > --- INVENTORY (15) --- Micro Nuclear Core Fusion Reactor Improved Cooling System Advanced Sensor Array Core Analyzer Core Analyzer Force Booster Transmission Jammer Improved Reaction Control System Layered Light Armor Plating Improved Focal Shield Battle Rifle Gauss Rifle Gauss Rifle KE Penetrator Peak State ------------ > --- POWER ------------ Light Fission Core Fusion Reactor > --- PROPULSION ------- Airjet Airjet Airjet Airjet Improved Gravmag System > --- UTILITY ---------- Power Amplifier Large Storage Unit Targeting Computer Target Analyzer Core Analyzer Phase Shifter Improved Light Armor Plating Layered Light Armor Plating > --- WEAPON ----------- Impact Mace > --- INVENTORY -------- Micro Nuclear Core Light Fission Core Improved Cooling System Small Storage Unit Advanced Sensor Array Core Analyzer Core Analyzer Core Analyzer Force Booster Transmission Jammer Improved Reaction Control System Gauss Rifle Gauss Rifle [Rating: 65] Favorites ----------- Power Light Ion Engine Engine Light Ion Engine Power Core Light Fission Core Reactor Fusion Reactor Propulsion Airjet Wheel Compact Wheel Hover Unit Airjet Flight Unit Flight Unit Utility Small Storage Unit Device Improved Terrain Scanner Storage Small Storage Unit Processor Target Analyzer Protection Improved Light Armor Plating Weapon Gauss Rifle Energy Gun Medium Laser Energy Cannon Light EM Pulse Cannon Ballistic Gun Gauss Rifle Launcher Improved Proton Missile Launcher Impact Weapon Impact Mace Slashing Weapon Mining Claw Build | -11 -10 -9 -8 -7 -7 -7 -6 -5 -5 -5 ------- Run | Yrd Mat Mat Mat Fac Gar Fac Fac Fac Upp Upp Slots Evolved 10 | . . 2 2 2 . . 2 2 . . Power 1 | . . . . 1 . . . . . . Propulsion 3 | . . . 2 1 . . . . . . Utility 6 | . . 2 . . . . 2 2 . . Weapon . | . . . . . . . . . . . Parts Attached 64 | 9 4 . 8 17 . 8 9 7 2 . Power 12 | 2 1 . . 4 . 1 2 1 1 . Engine 7 | 2 . . . 3 . 1 1 . . . Core 4 | . 1 . . 1 . . 1 1 . . Reactor 1 | . . . . . . . . . 1 . Propulsion 21 | 2 . . 4 7 . 6 2 . . . Treads . | . . . . . . . . . . . Leg . | . . . . . . . . . . . Wheel 2 | 2 . . . . . . . . . . Hover 8 | . . . . . . 6 2 . . . Flight 11 | . . . 4 7 . . . . . . Utility 21 | 2 2 . 3 4 . . 3 6 1 . Device 8 | 1 . . 2 . . . 2 3 . . Storage 4 | 1 2 . . . . . . 1 . . Processor 7 | . . . 1 3 . . 1 1 1 . Hackware . | . . . . . . . . . . . Protection 2 | . . . . 1 . . . 1 . . Artifact . | . . . . . . . . . . . Weapon 10 | 3 1 . 1 2 . 1 2 . . . Energy Gun 1 | 1 . . . . . . . . . . Energy Cannon 1 | . . . 1 . . . . . . . Ballistic Gun 4 | 2 . . . 2 . . . . . . Ballistic Cannon . | . . . . . . . . . . . Launcher 1 | . . . . . . . 1 . . . Special Weapon . | . . . . . . . . . . . Impact Weapon 2 | . . . . . . 1 1 . . . Slashing Weapon 1 | . 1 . . . . . . . . . Piercing Weapon . | . . . . . . . . . . . Special Melee Weapon . | . . . . . . . . . . . Unidentified Prototypes 4 | . . . . 2 . . 1 . 1 . Corrupted Parts 1 | . . . . . . . . 1 . . System Corruption 2 | . . . . . . . . 2 . . Parts Lost 14 | . 1 1 . 6 . 1 3 . . 2 Power 1 | . 1 . . . . . . . . . Propulsion 11 | . . 1 . 5 . 1 2 . . 2 Utility 2 | . . . . 1 . . 1 . . . Weapon . | . . . . . . . . . . . Highest Loss Streak 4 | . 1 1 . 4 . 1 1 . . 2 To Critical Strikes . | . . . . . . . . . . . Average Backups 7 | 1 6 11 7 6 6 7 7 7 14 15 Power 1 | . 1 1 1 1 1 1 1 1 2 2 Propulsion 1 | . 1 4 3 2 2 2 . . . . Utility 3 | . 1 3 1 1 2 2 4 4 10 9 Weapon 1 | . 2 3 1 1 1 1 1 1 2 4 Tool/Special . | . . . . . . . . . . . Unused Backups 29 | . . 1 2 7 . 2 5 4 . 8 Power . | . . . . . . . . . . . Propulsion 5 | . . . . 4 . 1 . . . . Utility 20 | . . 1 1 2 . 1 5 4 . 6 Weapon 4 | . . . 1 1 . . . . . 2 Tool/Special . | . . . . . . . . . . . Average Slot Usage (%) 94 | . 99 70 86 96 100 99 99 94 90 94 Engine 7 | . 9 . . 13 15 11 5 . . . Core 5 | . 4 11 9 1 . 3 6 9 10 11 Wheel 3 | . 28 15 . . . . . . . . Hover 13 | . . . . . . 19 33 29 29 29 Flight 15 | . . . 34 37 38 17 . . . . Device 8 | . 14 11 16 6 . . 12 14 11 11 Storage 7 | . 14 11 9 7 7 7 6 5 5 5 Processor 11 | . . . 6 12 15 15 13 16 18 23 Protection 4 | . . . . 3 7 7 6 6 5 5 Ballistic Gun 8 | . 19 22 2 10 15 8 5 2 . . Impact Weapon 2 | . . . . . . 5 4 5 5 5 Peak Build Rating 65 | 9 11 11 20 42 42 45 57 64 65 64 Average Rating 36 | 6 9 10 18 30 42 43 54 60 61 64 On Entrance 31 | . 9 11 11 20 42 42 43 50 58 64 Avg Prop Armor Cover (%) . | . . . . . . . . . . . Naked Turns . | . . . . . . . . . . . Heaviest Build 42 | 15 30 29 16 24 24 32 41 41 42 42 Greatest Support 43 | 32 32 32 16 28 28 42 43 42 42 42 Greatest Overweight (x) 1 | . . 1 . 1 . 1 . . . . Average Overweight (x) . | . . . . . . . . . . . Largest Inventory Capacity 15 | 8 15 15 15 8 8 8 8 15 15 15 Average Capacity 9 | 7 13 15 8 8 8 8 8 11 15 15 Most Carried 15 | 4 9 15 14 8 6 8 8 14 15 15 Average Carried 7 | 1 6 11 7 6 6 7 7 7 14 15 Final Capacity 15 | 8 15 15 8 8 8 8 8 15 15 15 Final Carried 15 | 4 9 15 8 6 6 6 8 14 15 15 Class Distribution -------------------- 58% | Mutant 17% | Scavenger-Sprinter 12% | Scavenger-Scout 10% | Sprinter Dominant Class ---------------- Mutant | -10/Materials Mutant | -9/Materials Scavenger-Scout | -8/Materials Scavenger-Sprinter | -7/Factory Sprinter | -7/Garrison Mutant | -7/Factory Mutant | -6/Factory Mutant | -5/Factory Mutant | -5/Upper Caves Mutant | -5/Upper Caves Resources | -11 -10 -9 -8 -7 -7 -7 -6 -5 -5 -5 ----------- Run | Yrd Mat Mat Mat Fac Gar Fac Fac Fac Upp Upp Matter Collected 1296 | 278 78 62 30 366 . 200 81 32 169 . Remotely . | . . . . . . . . . . . Salvage Created 1350 | 119 118 62 30 317 . 216 186 32 270 . Parts 52 | 12 3 12 . 14 . 7 2 . 2 . Haulers Intercepted . | . . . . . . . . . . . Recyclers Shooed 4 | 1 . . . . . 1 2 . . . Parts Field Recycled . | . . . . . . . . . . . Retrieved Matter . | . . . . . . . . . . . Parts Self-Destructed 2 | . . . . . . . . . 2 . Prevented . | . . . . . . . . . . . Parts Restored . | . . . . . . . . . . . Kills | -11 -10 -9 -8 -7 -7 -7 -6 -5 -5 -5 ------- Run | Yrd Mat Mat Mat Fac Gar Fac Fac Fac Upp Upp Combat Hostiles Destroyed 11 | . 3 4 . 2 . 2 . . . . Guns 11 | . 3 4 . 2 . 2 . . . . Classes Destroyed 11 | 2 1 1 1 4 . 1 . . 1 . Worker 2 | . . . . 1 . . 1 . . . Builder 3 | . . . . 1 . 2 . . . . Tunneler 4 | 4 . . . . . . . . . . Recycler 3 | 1 . . . 1 . 1 . . . . Watcher 7 | . . . 1 3 . . 2 1 . . Swarmer 5 | . . 4 . . . 1 . . . . Grunt 3 | . 3 . . . . . . . . . Brawler 1 | . . . . . . 1 . . . . Hunter 1 | . . . . 1 . . . . . . Programmer 1 | . . . . 1 . . . . . . Decomposer 4 | . . . . . . . . . 4 . Samaritan 1 | . . . . . . . . . 1 . Best Kill Streak 5 | 5 2 4 1 4 . 3 1 1 . . Combat Bots Only 4 | . 2 4 . 2 . 2 . . . . Max Kills in Single Turn 2 | 1 1 1 1 2 . 1 1 1 1 . Gunslinging . | . . . . . . . . . . . Exploded . | . . . . . . . . . . . Melee . | . . . . . . . . . . . Uniques/NPCs Destroyed . | . . . . . . . . . . . Combat | -11 -10 -9 -8 -7 -7 -7 -6 -5 -5 -5 -------- Run | Yrd Mat Mat Mat Fac Gar Fac Fac Fac Upp Upp Hostile Shots Fired 158 | . 18 17 . 60 10 28 19 . . 6 Missed 53 | . 4 4 . 21 4 10 9 . . 1 Hits 105 | . 14 13 . 39 6 18 10 . . 5 Melee 3 | . . . . . . 1 2 . . . Projectile 102 | . 14 13 . 39 6 17 8 . . 5 AOE 1 | . . . . . . . 1 . . . Critical Strikes 2 | . . . . . . 2 . . . . Damage Taken 1546 | . 198 101 . 583 48 255 272 . . 89 Core 251 | . 48 19 . 96 . 30 43 . . 15 Absorbed by Shields 4 | . . . . . . 4 . . . . Core Remaining (%) 91 | 100 80 95 100 . . 82 94 . . . Volleys Fired 62 | 14 11 6 4 20 . 5 2 . . . Largest 2 | 2 2 2 1 2 . 2 2 . . . Hottest 71 | 70 70 40 56 56 . 56 71 . . . Shots Fired 116 | 28 22 12 4 36 . 10 4 . . . Gun 106 | 28 22 12 . 32 . 10 2 . . . Cannon 8 | . . . 4 4 . . . . . . Launcher 2 | . . . . . . . 2 . . . Special . | . . . . . . . . . . . Kinetic 88 | 14 18 12 . 32 . 10 2 . . . Thermal 18 | 14 4 . . . . . . . . . Explosive . | . . . . . . . . . . . Electromagnetic 10 | . . . 4 4 . . 2 . . . Robot Hit Streak 15 | 6 15 3 2 7 . 2 1 . . . Robot Miss Streak 2 | 2 2 2 1 1 . 2 1 . . . Penetration Max 1 | . . . . 1 . . . . . . Secondary Targets 2 | . . 2 . . . . . . . . Max Gunslinging Chain 1 | . . 1 . . . . . . . . Shots Hit Robots 86 | 19 16 7 2 20 . 9 3 1 9 . Core Hits 40 | 6 7 5 1 12 . 4 3 . 2 . Critical Kills 3 | . . . . . . 2 . . 1 . Critical Parts Destroyed 5 | . . . . . . 2 . . 3 . Critical Strikes 10 | 1 . . . 1 . 4 . . 4 . Burn 1 | 1 . . . . . . . . . . Destroy 2 | . . . . . . 2 . . . . Corrupt 1 | . . . . 1 . . . . . . Smash 6 | . . . . . . 2 . . 4 . Melee Attacks 31 | . 1 . . . . 10 9 2 9 . Impact 30 | . . . . . . 10 9 2 9 . Slashing 1 | . 1 . . . . . . . . . Piercing . | . . . . . . . . . . . Sneak Attacks 9 | . . . . . . 2 1 1 5 . Combat Hostiles . | . . . . . . . . . . . Follow-up Attacks . | . . . . . . . . . . . Damage Inflicted 2964 | 249 179 96 76 506 . 338 357 126 1037 . Guns 1003 | 249 179 96 . 356 . 104 19 . . . Cannons 226 | . . . 76 150 . . . . . . Explosions 179 | . . . . . . . 179 . . . Melee 1556 | . . . . . . 234 159 126 1037 . Ramming . | . . . . . . . . . . . Kinetic 867 | 151 141 96 . 356 . 104 19 . . . Thermal 136 | 98 38 . . . . . . . . . Explosive . | . . . . . . . . . . . Electromagnetic 405 | . . . 76 150 . . 179 . . . Impact 1556 | . . . . . . 234 159 126 1037 . Slashing . | . . . . . . . . . . . Piercing . | . . . . . . . . . . . Highest Corruption 4 | . . . . . . . 4 2 2 2 Average Corruption 1 | . . . . . . . 1 2 2 2 Corruption Purged . | . . . . . . . . . . . Corruption Blocked . | . . . . . . . . . . . Effects 10 | . . . . . . . 5 2 3 . Message Errors 5 | . . . . . . . 2 1 2 . Matter Fused 3 | . . . . . . . 2 . 1 . Energy Discharges 2 | . . . . . . . 1 1 . . Overload Shots . | . . . . . . . . . . . Overflow Damage 837 | . . . 5 2 . 35 11 104 680 . Projectiles 7 | . . . 5 2 . . . . . . Explosions . | . . . . . . . . . . . Melee 830 | . . . . . . 35 11 104 680 . Knockbacks 2 | . . . . . . 1 . 1 . . Impact 2 | . . . . . . 1 . 1 . . Kinetic . | . . . . . . . . . . . Secondary . | . . . . . . . . . . . Self-Inflicted Damage . | . . . . . . . . . . . Shots . | . . . . . . . . . . . Rammed . | . . . . . . . . . . . Targets Rammed . | . . . . . . . . . . . Kicked . | . . . . . . . . . . . Crushed . | . . . . . . . . . . . Highest Temperature 307 | 54 54 . 48 207 155 307 65 . . . Average Temperature 59 | 22 23 . 22 48 70 89 29 . . . Received Heat Transfer 390 | . 108 . . 165 18 54 45 . . . Effects 1 | . . . . . . 1 . . . . Energy Bleed 1 | . . . . . . 1 . . . . Siege Activations . | . . . . . . . . . . . Martial Activations . | . . . . . . . . . . . Shielding Activations . | . . . . . . . . . . . Robots Disrupted . | . . . . . . . . . . . Combat Hostiles . | . . . . . . . . . . . Robots Corrupted 3 | . . . . . . 1 1 1 . . Combat Hostiles . | . . . . . . . . . . . Parts Fried 6 | . . . . 1 . 2 1 . 2 . Impact Corruptions 26 | . . . . . . 2 1 3 20 . Robots Melted . | . . . . . . . . . . . Combat Hostiles . | . . . . . . . . . . . Parts Melted . | . . . . . . . . . . . Heat Transferred 481 | 370 111 . . . . . . . . . Parts Sabotaged . | . . . . . . . . . . . Parts Stolen . | . . . . . . . . . . . Parts Stripped . | . . . . . . . . . . . Power Chain Reactions . | . . . . . . . . . . . Alert | -11 -10 -9 -8 -7 -7 -7 -6 -5 -5 -5 ------- Run | Yrd Mat Mat Mat Fac Gar Fac Fac Fac Upp Upp Maximum Alert Level . | . . . . . . . . . . . Low Security (%) 100 | 100 100 100 100 100 100 100 100 100 . . Level 1 . | . . . . . . . . . . . Level 2 . | . . . . . . . . . . . Level 3 . | . . . . . . . . . . . Level 4 . | . . . . . . . . . . . Level 5 . | . . . . . . . . . . . High Security . | . . . . . . . . . . . Max Security . | . . . . . . . . . . . Peak Influence 111 | 15 55 70 15 35 99 111 95 39 . . Initial 53 | . . 10 8 . 9 51 53 32 . . Average 26 | 2 19 32 4 5 29 57 44 24 . . Influence Increases 1032 | 25 95 90 22 166 90 250 235 39 20 . Destroy 0b10 Robot/C 220 | . 60 80 . 40 . 40 . . . . Destroy 0b10 Robot/NC 115 | 25 . . 5 30 . 15 15 5 20 . Destroy Leader 64 | . 20 10 2 26 . . 4 2 . . Successful Hack 52 | . . . . 40 . 12 . . . . Disable Machine 105 | . 15 . 15 . . 30 45 . . . Destroy Structure 11 | . . . . . . 3 6 2 . . Partial Spotted 150 | . . . . . 15 60 45 30 . . Lose Combat Pursuer 315 | . . . . 30 75 90 120 . . . Influence Decreases 1032 | 25 70 95 42 152 5 238 280 94 31 . Entered New Map 177 | . . 15 12 . 5 48 58 34 5 . Time Decay 758 | 25 60 70 30 115 . 180 192 60 26 . Lost Part 80 | . 10 10 . 20 . 10 30 . . . Lost Ally 17 | . . . . 17 . . . . . . Squads Dispatched 9 | . 1 . 1 1 . 2 4 . . . Investigation 2 | . . . 1 . . 1 . . . . Extermination 4 | . . . . 1 . 1 2 . . . Reinforcement 3 | . 1 . . . . . 2 . . . Assault . | . . . . . . . . . . . Garrison . | . . . . . . . . . . . Intercept . | . . . . . . . . . . . Searches Triggered . | . . . . . . . . . . . Construction Impeded . | . . . . . . . . . . . Haulers Reinforced 1 | . . . . . . . 1 . . . Active Scanning Responses . | . . . . . . . . . . . Cargo Convoy Interrupts . | . . . . . . . . . . . Stealth | -11 -10 -9 -8 -7 -7 -7 -6 -5 -5 -5 --------- Run | Yrd Mat Mat Mat Fac Gar Fac Fac Fac Upp Upp Distress Signals 6 | . . 1 . 3 . . 1 1 . . Communications Jammed 10 | . . . . . . . 10 . . . Distress Signals 10 | . . . . . . . 10 . . . Times Spotted 69 | . 4 7 5 18 4 14 13 2 . 2 Peak Tracking Total 6 | . 2 6 4 6 6 6 4 2 . 2 Tactical Retreats 13 | . . . . 2 1 4 6 . . . Traps | -11 -10 -9 -8 -7 -7 -7 -6 -5 -5 -5 ------- Run | Yrd Mat Mat Mat Fac Gar Fac Fac Fac Upp Upp Traps Triggered 5 | . . . . . . 2 3 . . . Indirectly . | . . . . . . . . . . . Trap Hack Attempts . | . . . . . . . . . . . Triggered . | . . . . . . . . . . . Disarmed . | . . . . . . . . . . . Reprogrammed . | . . . . . . . . . . . Reused . | . . . . . . . . . . . Traps Extracted . | . . . . . . . . . . . Installed . | . . . . . . . . . . . Triggered . | . . . . . . . . . . . Machines | -11 -10 -9 -8 -7 -7 -7 -6 -5 -5 -5 ---------- Run | Yrd Mat Mat Mat Fac Gar Fac Fac Fac Upp Upp Machines Disabled 7 | . 1 . 1 . . 2 3 . . . Max in Single Turn 2 | . 1 . 1 . . 1 2 . . . Machines Repaired . | . . . . . . . . . . . Machines Dismantled . | . . . . . . . . . . . Machines Sabotaged . | . . . . . . . . . . . Overloaded Fab Kills . | . . . . . . . . . . . Hacking | -11 -10 -9 -8 -7 -7 -7 -6 -5 -5 -5 --------- Run | Yrd Mat Mat Mat Fac Gar Fac Fac Fac Upp Upp Machines Accessed 19 | . . . 2 7 . 7 1 1 1 . Terminals 8 | . . . 2 3 . 2 . . 1 . Fabricators 3 | . . . . 1 . . 1 1 . . Repair Stations 1 | . . . . . . 1 . . . . Recycling Units 3 | . . . . 1 . 2 . . . . Scanalyzers 1 | . . . . 1 . . . . . . Garrison Access 3 | . . . . 1 . 2 . . . . Total Hacks 28 | . . . 6 8 . 10 2 1 1 . Successful 10 | . . . . 5 . 2 1 1 1 . Failed 18 | . . . 6 3 . 8 1 . . . Catastrophic 7 | . . . . 2 . 5 . . . . Database Lockouts . | . . . . . . . . . . . Manual 8 | . . . 2 3 . 3 . . . . Terminals 13 | . . . 6 3 . 3 . . 1 . Fabricators 4 | . . . . 1 . . 2 1 . . Repair Stations 2 | . . . . . . 2 . . . . Recycling Units 3 | . . . . 1 . 2 . . . . Scanalyzers 1 | . . . . 1 . . . . . . Garrison Access 5 | . . . . 2 . 3 . . . . Terminal Hacks 1 | . . . . . . . . . 1 . Record 1 | . . . . . . . . . 1 . Fabricator Hacks 3 | . . . . 1 . . 1 1 . . Network Status 2 | . . . . . . . 1 1 . . Build 1 | . . . . 1 . . . . . . Repair Station Hacks 1 | . . . . . . 1 . . . . Scan Component 1 | . . . . . . 1 . . . . Recycling Unit Hacks 1 | . . . . . . 1 . . . . Retrieve Components 1 | . . . . . . 1 . . . . Scanalyzer 1 | . . . . 1 . . . . . . Retrieve Study 1 | . . . . 1 . . . . . . Garrison Access Hacks 1 | . . . . 1 . . . . . . Unlock Access 1 | . . . . 1 . . . . . . Unauthorized Hacks 2 | . . . . 2 . . . . . . Terminals 2 | . . . . 2 . . . . . . Assimilate 2 | . . . . 2 . . . . . . Fabricators . | . . . . . . . . . . . Repair Stations . | . . . . . . . . . . . Recycling Units . | . . . . . . . . . . . Scanalyzers . | . . . . . . . . . . . Garrison Access . | . . . . . . . . . . . Data Cores Recovered . | . . . . . . . . . . . Used . | . . . . . . . . . . . Hacking Detections 17 | . . . 2 6 . 7 1 . 1 . Full Trace Events 2 | . . . 1 . . 1 . . . . Feedback Events . | . . . . . . . . . . . Feedback Blocked . | . . . . . . . . . . . Robot Schematics Acquired . | . . . . . . . . . . . Robots Built . | . . . . . . . . . . . Authchips . | . . . . . . . . . . . Time . | . . . . . . . . . . . Total Robot Build Rating . | . . . . . . . . . . . Part Schematics Acquired . | . . . . . . . . . . . Parts Built 2 | . . . . 2 . . . . . . Authchips . | . . . . . . . . . . . Time 95 | . . . . 95 . . . . . . Total Part Build Rating 10 | . . . . 10 . . . . . . Part Studies Acquired 1 | . . . . 1 . . . . . . Parts Repaired . | . . . . . . . . . . . Time . | . . . . . . . . . . . Parts Recycled . | . . . . . . . . . . . Recycled Matter . | . . . . . . . . . . . Retrieved Matter . | . . . . . . . . . . . Retrieved Components . | . . . . . . . . . . . Parts Scanalyzed . | . . . . . . . . . . . Part Schematics Acquired . | . . . . . . . . . . . Parts Damaged . | . . . . . . . . . . . Bothacking | -11 -10 -9 -8 -7 -7 -7 -6 -5 -5 -5 ------------ Run | Yrd Mat Mat Mat Fac Gar Fac Fac Fac Upp Upp Used RIF Installer . | . . . . . . . . . . . Robots Hacked . | . . . . . . . . . . . Non-combat . | . . . . . . . . . . . Combat . | . . . . . . . . . . . Robot Hacks Applied . | . . . . . . . . . . . Relay Couplers Released . | . . . . . . . . . . . Fabnet Peak Effective % . | . . . . . . . . . . . Robots Rewired . | . . . . . . . . . . . Allies Hacked . | . . . . . . . . . . . Hacks Repelled . | . . . . . . . . . . . Allies | -11 -10 -9 -8 -7 -7 -7 -6 -5 -5 -5 -------- Run | Yrd Mat Mat Mat Fac Gar Fac Fac Fac Upp Upp Total Allies 2 | . . . . 2 . . . . . . Largest Group 2 | . . . . 2 . . . . . . Highest-Rated Group 20 | . . . . 20 . . . . . . Highest-Rated Ally 10 | . . . . 10 . . . . . . Total Orders 1 | . . . . 1 . . . . . . FOLLOW 1 | . . . . 1 . . . . . . Ally Attacks . | . . . . . . . . . . . Total Damage . | . . . . . . . . . . . Kills . | . . . . . . . . . . . Allies Corrupted . | . . . . . . . . . . . Allies Melted . | . . . . . . . . . . . Intel | -11 -10 -9 -8 -7 -7 -7 -6 -5 -5 -5 ------- Run | Yrd Mat Mat Mat Fac Gar Fac Fac Fac Upp Upp Active Infowar (turns) 1411 | 54 206 151 137 333 . . 431 99 . . Sensors 325 | . . . 127 198 . . . . . . Terrain 881 | 54 206 151 137 333 . . . . . . Jamming 530 | . . . . . . . 431 99 . . Robot Analysis Total . | . . . . . . . . . . . Derelict Logs Recovered 1 | . . . . . . . . . 1 . Drone Launches . | . . . . . . . . . . . Drone Recoveries . | . . . . . . . . . . . Exploration | -11 -10 -9 -8 -7 -7 -7 -6 -5 -5 -5 ------------- Run | Yrd Mat Mat Mat Fac Gar Fac Fac Fac Upp Upp Turns Passed 2514 | 128 206 151 137 645 55 378 438 121 254 1 Spaces Moved 4303 | 74 158 116 230 1261 157 768 845 207 486 1 Core 7 | 7 . . . . . . . . . . Treads . | . . . . . . . . . . . Legs . | . . . . . . . . . . . Wheels 341 | 67 158 116 . . . . . . . . Hover 1841 | . . . . . . 302 845 207 486 1 Flight 2114 | . . . 230 1261 157 466 . . . . Fastest Speed 27 | 50 100 100 31 27 27 27 44 44 44 44 Average Speed 40 | 95 100 110 31 28 27 33 44 44 44 44 Slowest Speed 115 | 100 100 115 31 111 27 112 44 44 44 44 Overloaded Moves . | . . . . . . . . . . . Propulsion Burnouts . | . . . . . . . . . . . Robots Hopped 1 | . . . . 1 . . . . . . Potential Cave-ins . | . . . . . . . . . . . Cave-ins Triggered . | . . . . . . . . . . . Exploration Rate (%) 22 | 2 30 14 23 30 31 25 24 6 65 2 Regions Visited 10 Branch Regions 2 Pre-discovered Areas . | . . . . . . . . . . . Known Exits Taken 2 | . . . 1 1 . . . . . . Unknown Exits Taken 7 | 1 1 1 . . . 1 1 1 1 . Scrap Searched 2 | . . . . . . . . . 2 . Spaces Dug 10 | . . . . . . 3 6 1 . . Terrain Destroyed 10 | . . . . . . 3 6 1 . . Melee 10 | . . . . . . 3 6 1 . . Projectile . | . . . . . . . . . . . AOE . | . . . . . . . . . . . Terrain Rammed . | . . . . . . . . . . . Walls Destroyed . | . . . . . . . . . . . Machines Disabled . | . . . . . . . . . . . Actions | -11 -10 -9 -8 -7 -7 -7 -6 -5 -5 -5 --------- Run | Yrd Mat Mat Mat Fac Gar Fac Fac Fac Upp Upp Total 4876 | 98 181 129 292 1517 168 854 891 233 512 1 Wait 270 | . 2 . 38 182 12 35 . 1 . . Move 4291 | 73 157 115 229 1258 156 767 844 206 485 1 Hop 1 | . . . . 1 . . . . . . Pick Up 66 | 2 4 7 5 18 . 5 12 9 4 . Fast Attach 24 | 7 1 . 3 5 . 4 3 1 . . Attach 28 | . . . 4 9 . 3 5 3 4 . Detach 8 | . . . . 1 . . 1 3 3 . Swap 31 | 2 4 . 2 7 . 7 5 4 . . Drop 50 | . 1 1 7 16 . 9 10 4 2 . Fire 62 | 14 11 6 4 20 . 5 2 . . . Melee 31 | . 1 . . . . 10 9 2 9 . Ram . | . . . . . . . . . . . Kick . | . . . . . . . . . . . Crush . | . . . . . . . . . . . Escape Stasis 9 | . . . . . . 9 . . . . Rewire 5 | . . . . . . . . . 5 . Trap . | . . . . . . . . . . . Miscellaneous . | . . . . . . . . . . . Route ------- -11/Scrapyard -10/Materials -9/Materials -8/Materials -7/Factory -7/Garrison -7/Factory -6/Factory -5/Factory -5/Upper Caves -5/Upper Caves History --------- Turn | Location | Event 8 | -11/Scrapyard | Discovered new exit (range 16) 129 | -11/Scrapyard | Entered Materials 296 | -10/Materials | Discovered new exit (range 16) 317 | -10/Materials | Build established: Mutant 335 | -10/Materials | Entered another Materials area 335 | -9/Materials | Evolved 2 slots: Utility x2 482 | -9/Materials | Discovered new exit (range 4) 486 | -9/Materials | Entered another Materials area 486 | -8/Materials | Evolved 2 slots: Propulsion x2 619 | -8/Materials | Discovered new exit (range 16) 623 | -8/Materials | Identified exit to Factory 623 | -8/Materials | Entered Factory 623 | -7/Factory | Evolved 2 slots: Power x1, Propulsion x1 776 | -7/Factory | Build established: Scavenger-Scout 808 | -7/Factory | Fabricated Remote Shield? 1005 | -7/Factory | Lost 4 parts (3n1u) 1267 | -7/Factory | Identified exit to Garrison 1268 | -7/Factory | Entered Garrison 1284 | -7/Garrison | Triggered checkpoint 1319 | -7/Garrison | Discovered new exit (range 15) 1323 | -7/Garrison | Entered Factory 1686 | -7/Factory | Discovered new exit (range 14) 1701 | -7/Factory | Entered another Factory area 1701 | -6/Factory | Evolved 2 slots: Utility x2 1811 | -6/Factory | Build established: Mutant 2131 | -6/Factory | Discovered new exit (range 14) 2139 | -6/Factory | Entered another Factory area 2139 | -5/Factory | Evolved 2 slots: Utility x2 2252 | -5/Factory | Discovered new exit (range 5) 2260 | -5/Factory | Entered Upper Caves 2269 | -5/Upper Caves | Encountered a Warlord checkpoint 2415 | -5/Upper Caves | Learned Factory terminal intel 2484 | -5/Upper Caves | Discovered new exit (range 13) 2514 | -5/Upper Caves | Entered another Upper Caves area 2515 | -5/Upper Caves | Self-destructed Last Messages --------------- 02465_ Attempting to rewire S-27 Virus. 02465_ S-27 Virus is broken beyond repair. 02466_ Sneak attack on S-27 Virus. 02466_ S-27 Virus suffers critical hit (Smash). 02466_ Destroyed Lgt. Nuclear Core. 02466_ Destroyed VTOL Module. 02466_ S-27 Virus system corrupted by crushing effect. 02466_ VTOL Module fried. 02466_ S-27 Virus destroyed. 02469_ Sneak attack on S-27 Virus. 02469_ S-27 Virus suffers critical hit (Smash). 02469_ S-27 Virus destroyed. 02482_ Acquired Battle Rifle. 02484_ EXIT=FOUND LOCATION=UNKNOWN GOAL=ESCAPE 02515_ Penetrated by Slug. 02515_ Imp. Gravmag System destroyed. 02515_ Airjet destroyed. Map ----- +----------------------------------------------------+ | ?????????????????????????????????????????????????? | | ?????????????????????????????????????????????????? | | ?????????????????????????????????????????????????? | | ?????????????????????????????????????????????????? | | ?????????????????????????????????????????????????? | | ?????????????????????????????????????????????????? | | ?????????????????????????????????????????????????? | | ?????????????????????????????????????????????????? | | ?????????????????????????????????????????????????? | | ?????????????????????????????????????????????????? | | ?????????????????????????????????????????????????? | | ?????????????????????????????????????????????????? | | ?????????????????????????????????????????????????? | | ?????????????????????????????????????????????????? | | ?????????????????????????????????????????????????? | | ?????????????????????????????????????????????????? | | ?????????????????????????????????????????????????? | | ?????????????????????????????????????????????????? | | ?????????????????????????????????????????????????? | | ?????????????????????????????????????????????????? | | ?????????????????###???????????????? #???????????? | | ?????????????????# ##???????????? #???????????? | | ????????????????## #?######## #????????????? | | ???????????????## ## #?????????????? | | ??????????????## h #?????????????? | | ??????????????# h @ #?????????????? | | ???????????????# #???????????????? | | ???????????????### ##???????????????? | | ?????????????????####### #????????????????? | | ???????????????????????## ##????????????????? | | ????????????????????????### #?????????????????? | | ???????????????????????????# ##?????????????????? | | ????????????????????????????###??????????????????? | | ?????????????????????????????????????????????????? | | ?????????????????????????????????????????????????? | | ?????????????????????????????????????????????????? | | ?????????????????????????????????????????????????? | | ?????????????????????????????????????????????????? | | ?????????????????????????????????????????????????? | | ?????????????????????????????????????????????????? | | ?????????????????????????????????????????????????? | | ?????????????????????????????????????????????????? | | ?????????????????????????????????????????????????? | | ?????????????????????????????????????????????????? | | ?????????????????????????????????????????????????? | | ?????????????????????????????????????????????????? | | ?????????????????????????????????????????????????? | | ?????????????????????????????????????????????????? | | | | | +----------------------------------------------------+ Best States ------------- Heat Dissipation 40 Energy Generation 36 Energy Capacity 350 Matter Stores 300 Matter Capacity 300 Sight Range 16 Robot Scan Range 15 Terrain Scan Range 16 Terrain Scan Density 210 Jamming Range 12 Power Amplification 20 Armor Coverage 300 Weapon Cycling 15 Phase Shifting 5 Evasion (%) 71 Targeting Accuracy 13 Target Analysis 5 Core Analysis 9 Item Schematics ----------------- None Robot Schematics ------------------ None Fabricated ------------ Remote Shield | x2 | -7/Factory | Preloaded Repaired ---------- Nothing Studied --------- Flight Unit | -7/Factory | Hacked Alien Tech Used ----------------- None Achievements -------------- None Challenges ------------ None Game ------ Seed PointSubdwellerRigger Manual? 0 Play Time 00:49:18 Cumulative 41.7 hours Start 2026.08.31 @ 07:42:08 End 2026.08.31 @ 12:53:10 Sessions 1 Manual Loads 0 Difficulty Rogue Special Mode None Game No. 106 Rogue 106 Adventurer 0 Explorer 0 Win Type - Total 3 Types 3/0/0/0/0/0/0/0/0/0 Lore% 40 Gallery% 36 Achievement% 41 Wizard Run 0 Options --------- Layout 2 ASCII 0 Keyboard 0 Movement Mouse Keybinds 0 Fullscreen 1 Font 16/SmallcapsGlow Map View 50x49 Zoom Use 0% Tactical HUD 1 Map Filters NONE Filters NONE Steam SD RUN: f3a1d5e9-adf2-46b6-b372-6430069955a0